bitfinex-derivatives/quotes_BTCF0:USTF0_20251002
["timestamp","ask_amount","ask_price","bid_price","bid_amount"]
[1759427794022,0.89769433,119930.0,119920.0,1.11076942]
[1759427794421,0.89769433,119930.0,119920.0,0.78765832]
[1759427795026,0.89769433,119930.0,119920.0,0.80096832]
[1759427798621,0.14089433,119930.0,119920.0,0.80096832]
[1759427798818,0.89765433,119930.0,119920.0,0.80096832]
[1759427801327,0.89765433,119930.0,119920.0,0.4784493]
[1759427801724,0.89765433,119930.0,119920.0,0.80096832]
[1759427802423,0.89761433,119930.0,119920.0,0.80096832]
[1759427802622,0.88380433,119930.0,119920.0,0.80096832]
[1759427802823,0.88380433,119930.0,119920.0,0.71762902]
[1759427803024,0.88380433,119930.0,119920.0,0.80096832]
[1759427803425,0.90621478,119930.0,119920.0,0.80096832]
[1759427803727,0.90621478,119930.0,119920.0,0.71762902]
[1759427803921,0.92002478,119930.0,119920.0,0.71762902]
[1759427805028,1.2425438,119930.0,119920.0,0.021]
[1759427805628,0.92002478,119930.0,119920.0,0.021]
[1759427807429,0.92002478,119930.0,119920.0,0.34351902]
[1759427808729,0.92002478,119930.0,119920.0,0.021]
[1759427810436,0.1197293,119920.0,119910.0,0.78765992]
[1759427810635,0.14090123,119920.0,119910.0,0.78765992]
[1759427814831,0.16331168,119920.0,119910.0,0.78765992]
[1759427815738,0.16331168,119920.0,119910.0,0.80082992]
[1759427816437,0.91995168,119920.0,119910.0,0.80082992]
[1759427817640,0.91995168,119920.0,119910.0,0.71748902]
[1759427817938,0.16331168,119920.0,119910.0,0.71748902]
[1759427818240,0.91991168,119920.0,119910.0,0.71748902]
[1759427818539,0.90610168,119920.0,119910.0,0.80083522]
[1759427824646,0.90610168,119920.0,119910.0,0.71748902]
[1759427824942,0.88369123,119920.0,119910.0,0.71748902]
[1759427825851,0.12709123,119920.0,119910.0,0.71748902]
[1759427826053,0.88361123,119920.0,119910.0,0.71748902]
[1759427827552,0.89681123,119920.0,119910.0,0.71748902]
[1759427828349,0.88357123,119920.0,119910.0,0.80083522]
[1759427830352,0.88357123,119920.0,119910.0,0.4783162]
[1759427830549,0.12709123,119920.0,119910.0,0.4783162]
[1759427830749,0.88357123,119920.0,119910.0,0.80083522]
[1759427832555,0.12709123,119920.0,119910.0,0.80083522]
[1759427832857,0.88357123,119920.0,119910.0,0.80083522]
[1759427833152,0.88357123,119920.0,119910.0,0.4783162]
[1759427833356,0.88357123,119920.0,119910.0,0.80083522]
[1759427833553,0.88353123,119920.0,119910.0,1.12335424]
[1759427833754,0.80019193,119920.0,119910.0,1.12335424]
[1759427834058,0.10451123,119920.0,119910.0,1.52335424]
[1759427834256,0.86095123,119920.0,119910.0,1.52335424]
[1759427837159,0.8397793,119920.0,119910.0,1.52335424]
[1759427839165,0.8614993,119920.0,119910.0,1.52335424]
[1759427840966,0.77808,119920.0,119910.0,1.52335424]
[1759427842864,0.77808,119920.0,119910.0,0.8783162]
[1759427843070,0.77808,119920.0,119910.0,1.52335424]
[1759427843371,0.79937564,119920.0,119910.0,1.52335424]
[1759427844661,0.04301564,119920.0,119910.0,1.52335424]
[1759427844865,0.77804,119920.0,119910.0,1.52335424]
[1759427846371,0.8613793,119920.0,119910.0,1.52335424]
[1759427847867,0.88267404,119920.0,119910.0,1.52335424]
[1759427848471,0.12635404,119920.0,119910.0,1.52335424]
[1759427848666,0.88263404,119920.0,119910.0,1.52335424]
[1759427850468,0.04301474,119920.0,119910.0,1.52335424]
[1759427850680,0.1045542,119930.0,119920.0,0.1192842]
[1759427850974,0.41536771,119930.0,119920.0,0.80260322]
[1759427852475,0.04251351,119930.0,119920.0,1.12512224]
[1759427852772,0.8607885,119940.0,119930.0,0.1192832]
[1759427852963,0.88204395,119940.0,119930.0,0.80260222]
[1759427856276,0.88204395,119940.0,119930.0,1.12488592]
[1759427856976,0.02125545,119940.0,119930.0,1.12488592]
[1759427857176,0.77741545,119940.0,119930.0,1.12488592]
[1759427857375,0.77741545,119940.0,119930.0,1.14084202]
[1759427857578,0.75616,119940.0,119930.0,1.14084202]
[1759427857783,0.77739041,119940.0,119930.0,1.12488592]
[1759427859173,0.75616,119940.0,119930.0,1.12488592]
[1759427859878,0.77734,119950.0,119940.0,0.1192766]
[1759427860080,0.79856026,119950.0,119940.0,1.12487932]
[1759427860285,0.77734,119950.0,119940.0,1.12487932]
[1759427861077,0.79855327,119950.0,119940.0,1.12487932]
[1759427861277,0.77734,119950.0,119940.0,1.12487932]
[1759427861485,0.77734,119950.0,119940.0,0.4800766]
[1759427861777,0.8606597,119950.0,119940.0,1.12487932]
[1759427862079,0.77734,119950.0,119940.0,1.12487932]
[1759427863884,0.77734,119950.0,119940.0,0.4800766]
[1759427864078,0.77734,119950.0,119940.0,1.12487932]
[1759427866687,0.8606597,119950.0,119940.0,1.12487932]
[1759427866891,0.08852855,119960.0,119950.0,0.1192697]
[1759427867090,0.92780125,119960.0,119950.0,1.12487242]
[1759427868981,0.17184125,119960.0,119950.0,1.12487242]
[1759427869187,0.77714,119960.0,119950.0,1.44727378]
[1759427869387,0.8604527,119960.0,119950.0,1.12487242]
[1759427869887,0.77714,119960.0,119950.0,1.12487242]
[1759427870578,0.84444863,119960.0,119950.0,1.12487242]
[1759427871186,0.94043143,119960.0,119950.0,0.4662897]
[1759427871390,0.1172097,119950.0,119940.0,0.70537136]
[1759427871690,0.1172097,119950.0,119940.0,1.11109672]
[1759427872684,0.1045397,119950.0,119940.0,1.11109672]
[1759427872988,0.1045397,119950.0,119940.0,1.12487672]
[1759427873294,0.02122,119950.0,119940.0,1.12487672]
[1759427873492,0.77706,119950.0,119940.0,1.12487672]
[1759427874880,0.15062593,119960.0,119950.0,0.0833197]
[1759427875088,0.92764593,119960.0,119950.0,0.76407242]
[1759427876190,0.94155593,119960.0,119950.0,0.44167106]
[1759427876992,0.92764593,119960.0,119950.0,0.44167106]
[1759427877294,0.94155593,119960.0,119950.0,0.44167106]
[1759427877896,0.94155593,119960.0,119950.0,0.35835136]
[1759427878195,1.68516674,119960.0,119950.0,0.42789106]
[1759427878596,1.36276538,119960.0,119950.0,0.42789106]
[1759427878897,0.19305538,119960.0,119950.0,0.76359242]
[1759427879095,0.94885538,119960.0,119950.0,0.44119106]
[1759427879299,0.96276538,119960.0,119950.0,0.42789106]
[1759427883303,0.20696538,119960.0,119950.0,0.42789106]
[1759427883496,0.96272538,119960.0,119950.0,0.42789106]
[1759427885103,0.96272538,119960.0,119950.0,0.1054897]
[1759427885403,0.96272538,119960.0,119950.0,0.42789106]
[1759427885604,0.20696538,119960.0,119950.0,0.42789106]
[1759427885803,0.96268538,119960.0,119950.0,1.11109242]
[1759427885994,0.20696538,119960.0,119950.0,1.11109242]
[1759427886196,0.96268538,119960.0,119950.0,1.11109242]
[1759427886994,0.87936808,119960.0,119950.0,1.11109242]
[1759427887200,0.96268088,119960.0,119950.0,1.12439242]
[1759427892909,0.96268088,119960.0,119950.0,1.11109242]
[1759427895110,0.96264088,119960.0,119950.0,1.11109242]
[1759427895410,0.94873088,119960.0,119950.0,1.12439242]
[1759427895710,0.96264088,119960.0,119950.0,1.12439242]
[1759427896306,0.19305088,119960.0,119950.0,1.12439242]
[1759427896505,0.94873088,119960.0,119950.0,1.12439242]
[1759427901007,0.10973808,119960.0,119950.0,1.12439242]
[1759427901212,0.86537808,119960.0,119950.0,1.12439242]
[1759427901408,0.94869078,119960.0,119950.0,1.12439242]
[1759427904914,0.97110123,119960.0,119950.0,1.12439242]
[1759427906718,0.88774853,119960.0,119950.0,1.12439242]
[1759427907616,0.86533808,119960.0,119950.0,1.12439242]
[1759427909219,0.04242945,119960.0,119950.0,1.12439242]
[1759427909413,0.79798945,119960.0,119950.0,1.12439242]
[1759427911014,0.79798945,119960.0,119950.0,0.4795897]
[1759427911211,0.88130215,119960.0,119950.0,1.12439242]
[1759427912120,0.9037126,119960.0,119950.0,1.12439242]
[1759427912519,1.23979396,119960.0,119950.0,0.02217]
[1759427912821,0.9173926,119960.0,119950.0,0.75029242]
[1759427913120,0.96945522,119960.0,119950.0,0.76402242]
[1759427913513,0.21389522,119960.0,119950.0,0.76402242]
[1759427913721,0.88610252,119960.0,119950.0,1.12482242]
[1759427913908,0.13058252,119960.0,119950.0,1.12482242]
[1759427914422,0.67158945,119960.0,119950.0,1.44722378]
[1759427914808,0.67158945,119960.0,119950.0,1.12482242]
[1759427915011,0.65038,119960.0,119950.0,1.12482242]
[1759427915510,0.11838295,119980.0,119960.0,0.0970427]
[1759427915715,0.77806,119970.0,119960.0,0.44145406]
[1759427916016,0.04376181,119970.0,119960.0,0.80225406]
[1759427916319,0.79928181,119970.0,119960.0,0.4798527]
[1759427916719,0.04376181,119970.0,119960.0,1.12431668]
[1759427916921,0.79928181,119970.0,119960.0,1.12431668]
[1759427917417,0.79928181,119970.0,119960.0,0.80208469]
[1759427918619,0.79924181,119970.0,119960.0,0.80208469]
[1759427920422,0.79924181,119970.0,119960.0,1.12431668]
[1759427921223,0.02122181,119970.0,119960.0,1.12431668]
[1759427921424,0.75544,119970.0,119960.0,1.12431668]
[1759427921623,0.7766452,119970.0,119960.0,1.12431668]
[1759427922418,0.75544,119970.0,119960.0,1.12431668]
[1759427922927,0.75544,119970.0,119960.0,1.1386124]
[1759427923328,0.94203666,119980.0,119970.0,0.1190458]
[1759427923530,0.96323788,119980.0,119970.0,1.12430978]
[1759427925527,0.8612825,119980.0,119970.0,1.12430978]
[1759427927126,0.02254,119980.0,119970.0,1.12430978]
[1759427927320,0.1058366,119990.0,119980.0,0.0832988]
[1759427927526,0.89720686,119990.0,119980.0,0.80207079]
[1759427929022,0.81391026,119990.0,119980.0,0.80207079]
[1759427929231,0.89720216,119990.0,119980.0,0.80207079]
[1759427930330,0.96528665,119990.0,119980.0,0.80207079]
[1759427930526,0.18734665,119990.0,119980.0,0.80207079]
[1759427930732,0.02254,120000.0,119990.0,0.1190319]
[1759427930931,0.79904478,120000.0,119990.0,1.12429588]
[1759427931131,0.86687047,120000.0,119990.0,1.12429588]
[1759427931631,0.86687047,120000.0,119990.0,0.80206389]
[1759427931934,0.95015547,120000.0,119990.0,0.80206389]
[1759427932134,0.96436139,120000.0,119990.0,0.80206389]
[1759427933436,0.96435096,120000.0,119990.0,0.80206389]
[1759427934433,0.08203161,120000.0,119990.0,1.12429588]
[1759427934629,0.8610911,120020.0,120010.0,0.119018]
[1759427934834,0.89594084,120020.0,120010.0,0.80204999]
[1759427935036,0.91835129,120020.0,120010.0,0.80204999]
[1759427935435,0.91835129,120020.0,120010.0,0.39654]
[1759427935635,0.91835129,120020.0,120010.0,0.71877199]
[1759427935843,0.91835129,120020.0,120010.0,0.70504199]
[1759427936030,0.91835129,120020.0,120010.0,0.78831999]
[1759427937336,0.93183756,120020.0,120010.0,0.78831999]
[1759427937540,0.90942711,120020.0,120010.0,0.78831999]
[1759427937841,0.89574711,120020.0,120010.0,0.80122999]
[1759427938037,0.81243601,120020.0,120010.0,0.80122999]
[1759427938243,0.81243601,120020.0,120010.0,1.16202999]
[1759427938540,0.04370974,120020.0,120010.0,1.16202999]
[1759427938734,0.79890974,120020.0,120010.0,1.16202999]
[1759427938940,0.79890974,120020.0,120010.0,1.56202999]
[1759427939441,0.88218084,120020.0,120010.0,1.56202999]
[1759427939940,0.89492084,120020.0,120010.0,1.16202999]
[1759427940339,0.88218084,120020.0,120010.0,1.16202999]
[1759427940735,0.89492084,120020.0,120010.0,1.14911999]
[1759427942835,0.89492084,120020.0,120010.0,1.06584199]
[1759427943544,0.89492084,120020.0,120010.0,1.07875199]
[1759427943842,0.04370974,120020.0,120010.0,1.07875199]
[1759427944046,0.88210084,120020.0,120010.0,1.07875199]
[1759427944242,0.88210084,120020.0,120010.0,0.71795199]
[1759427944442,0.89484084,120020.0,120010.0,0.71795199]
[1759427944740,0.89484084,120020.0,120010.0,0.78831999]
[1759427945047,0.8736711,120020.0,120010.0,0.38281]
[1759427945249,0.8736711,120020.0,120010.0,0.70504199]
[1759427950545,0.096018,120010.0,120000.0,0.38189]
[1759427950740,0.14027387,120010.0,120000.0,0.70412199]
[1759427951142,0.119148,120010.0,120000.0,0.70412199]
[1759427951448,0.14027649,120010.0,120000.0,0.70412199]
[1759427951640,0.14027649,120010.0,120000.0,0.78740699]
[1759427953943,0.89531649,120010.0,120000.0,0.78740699]
[1759427954143,0.89531649,120010.0,120000.0,0.80031699]
[1759427955546,0.89531649,120010.0,120000.0,0.70412199]
[1759427955856,0.89531649,120010.0,120000.0,0.34332199]
[1759427957855,0.89531649,120010.0,120000.0,0.42660699]
[1759427960149,0.89531649,120010.0,120000.0,0.02109]
[1759427960451,0.119155,120000.0,119990.0,0.42661389]
[1759427960755,0.14028349,120000.0,119990.0,0.42661389]
[1759427961249,0.89536349,120000.0,119990.0,0.1043819]
[1759427961453,0.89536349,120000.0,119990.0,0.78741389]
[1759427962354,0.89536349,120000.0,119990.0,0.4651819]
[1759427962849,0.14028349,120000.0,119990.0,0.78741389]
[1759427963053,0.02112849,120000.0,119990.0,0.80032389]
[1759427963356,0.14998,120010.0,120000.0,0.117285]
[1759427963553,0.90505995,120010.0,120000.0,0.71703199]
[1759427964447,0.91779995,120010.0,120000.0,0.34332199]
[1759427965745,0.91779995,120010.0,120000.0,0.02109]
[1759427965946,0.91779995,120010.0,120000.0,0.34332199]
[1759427966456,0.89541105,120010.0,120000.0,0.34332199]
[1759427966859,0.14033105,120010.0,120000.0,0.42660699]
[1759427967159,0.89541105,120010.0,120000.0,0.42660699]
[1759427969462,0.89541105,120010.0,120000.0,0.78740699]
[1759427969869,0.14033105,120010.0,120000.0,0.02109]
[1759427970066,0.89541105,120010.0,120000.0,0.02109]
[1759427970265,0.89541105,120010.0,120000.0,0.104375]
[1759427971267,0.89541105,120010.0,120000.0,0.02109]
[1759427971469,0.118695,120000.0,119990.0,0.38261]
[1759427971662,0.13987445,120000.0,119990.0,0.02181]
[1759427971857,0.89495445,120000.0,119990.0,0.34404199]
[1759427972670,0.89495445,120000.0,119990.0,0.02181]
[1759427974274,0.89495445,120000.0,119990.0,0.1051019]
[1759427974574,0.13987445,120000.0,119990.0,0.1051019]
[1759427974776,0.89495445,120000.0,119990.0,0.1051019]
[1759427975477,0.89495445,120000.0,119990.0,0.42733389]
[1759427976382,1.21710118,120000.0,119990.0,0.34395673]
[1759427977281,0.46202118,120000.0,119990.0,0.4440919]
[1759427977474,1.21710118,120000.0,119990.0,0.4440919]
[1759427977779,1.21710118,120000.0,119990.0,0.4659019]
[1759427978181,1.21710118,120000.0,119990.0,0.34395673]
[1759427978584,1.53924791,120000.0,119990.0,0.02181]
[1759427978778,1.57790118,120000.0,119990.0,0.02181]
[1759427978982,1.57790118,120000.0,119980.0,0.40544083]
[1759427978983,0.1187019,119990.0,119980.0,0.42725083]
[1759427979187,0.46202808,119990.0,119980.0,0.02181]
[1759427979391,0.13988135,119990.0,119980.0,0.34395673]
[1759427979683,0.9610073,119990.0,119980.0,0.42725563]
[1759427980078,0.9610073,119990.0,119980.0,0.74940236]
[1759427980283,0.9610073,119990.0,119980.0,0.76314236]
[1759427983183,0.9610073,119990.0,119980.0,0.44099563]
[1759427983786,0.9610073,119990.0,119980.0,0.42725563]
[1759427984985,0.9833962,119990.0,119980.0,0.42725563]
[1759427986886,1.30554293,119990.0,119980.0,0.42725563]
[1759427993091,1.30554293,119990.0,119980.0,0.34395673]
[1759427993693,1.30554293,119990.0,119980.0,0.42725563]
[1759427993985,1.30554293,119990.0,119980.0,0.1051089]
[1759427994191,1.30554293,119990.0,119980.0,0.42725563]
[1759427995092,1.28315403,119990.0,119980.0,0.42725563]
[1759427995690,1.28315403,119990.0,119980.0,0.74940236]
[1759427996090,1.28315403,119990.0,119980.0,0.42725563]
[1759427997490,0.9610073,119990.0,119980.0,0.42725563]
[1759427997687,1.28315403,119990.0,119980.0,0.42725563]
[1759427999192,0.52807403,119990.0,119980.0,0.42725563]
[1759427999391,1.28315403,119990.0,119980.0,0.42725563]
[1759428001394,0.9610073,119990.0,119980.0,0.42725563]
[1759428001596,1.28315403,119990.0,119980.0,0.42725563]
[1759428004899,0.9610073,119990.0,119980.0,0.42725563]
[1759428005201,1.28315403,119990.0,119980.0,0.42725563]
[1759428006103,1.28315403,119990.0,119980.0,0.1051089]
[1759428006305,1.28315403,119990.0,119980.0,0.42725563]
[1759428007104,0.1178489,119980.0,119970.0,0.38231]
[1759428007308,0.46117508,119980.0,119970.0,0.34365673]
[1759428008299,0.89406835,119980.0,119970.0,0.42696253]
[1759428008499,0.13902835,119980.0,119970.0,0.42696253]
[1759428008702,0.89406835,119980.0,119970.0,0.42696253]
[1759428009407,0.89406835,119980.0,119970.0,0.1048158]
[1759428009807,0.89406835,119980.0,119970.0,0.42696253]
[1759428010309,0.13902835,119980.0,119970.0,0.42696253]
[1759428010607,0.89406835,119980.0,119970.0,0.42696253]
[1759428011008,0.13902835,119980.0,119970.0,0.42696253]
[1759428011308,0.906212,119980.0,119970.0,0.42696253]
[1759428011706,0.8229131,119980.0,119970.0,0.80130253]
[1759428011906,0.151172,119980.0,119970.0,0.80130253]
[1759428012102,0.906212,119980.0,119970.0,0.80130253]
[1759428012403,0.77612,119980.0,119970.0,1.12344926]
[1759428012606,0.8594189,119980.0,119970.0,0.4791558]
[1759428012813,0.8594189,119980.0,119970.0,0.80130253]
[1759428013712,0.880854,119980.0,119970.0,0.80130253]
[1759428015614,0.125814,119980.0,119970.0,0.80130253]
[1759428015911,0.880854,119980.0,119970.0,0.80130253]
[1759428018211,0.125814,119980.0,119970.0,0.80130253]
[1759428018411,0.880814,119980.0,119970.0,0.80130253]
[1759428018916,0.125814,119980.0,119970.0,0.80130253]
[1759428019215,0.880814,119980.0,119970.0,0.80130253]
[1759428020818,0.125814,119980.0,119970.0,0.80130253]
[1759428021115,0.880814,119980.0,119970.0,0.80130253]
[1759428028430,0.894514,119980.0,119970.0,0.80130253]
[1759428029931,0.880814,119980.0,119970.0,0.80130253]
[1759428030130,0.880734,119980.0,119970.0,0.80130253]
[1759428031834,0.880734,119980.0,119970.0,0.4791558]
[1759428032034,0.880734,119980.0,119970.0,0.80130253]
[1759428035133,0.7974351,119980.0,119970.0,0.80130253]
[1759428035637,0.7974351,119980.0,119970.0,0.4791558]
[1759428035937,0.7974351,119980.0,119970.0,0.80130253]
[1759428036438,0.7973951,119980.0,119970.0,0.80133428]
[1759428037439,0.880694,119980.0,119970.0,0.80133428]
[1759428038536,0.880694,119980.0,119970.0,0.4791558]
[1759428038740,0.880694,119980.0,119970.0,0.80133428]
[1759428046447,0.894394,119980.0,119970.0,0.4656158]
[1759428046850,0.894394,119980.0,119970.0,0.78779428]
[1759428047343,0.894394,119980.0,119970.0,0.80167428]
[1759428047547,0.894394,119980.0,119970.0,0.78779428]
[1759428048540,0.894394,119980.0,119970.0,0.80167428]
[1759428048854,0.880614,119980.0,119970.0,0.80167428]
[1759428049247,0.894314,119980.0,119970.0,0.80167428]
[1759428050150,0.880614,119980.0,119970.0,0.80167428]
[1759428050346,0.894314,119980.0,119970.0,0.4656158]
[1759428050852,0.894314,119980.0,119970.0,0.78779428]
[1759428053851,0.880614,119980.0,119970.0,0.80167428]
[1759428054749,0.88074678,119980.0,119970.0,0.80167428]
[1759428059155,0.89380678,119980.0,119970.0,0.80167428]
[1759428060351,0.12594678,119980.0,119970.0,0.80167428]
[1759428060553,0.88066678,119980.0,119970.0,0.80167428]
[1759428061958,0.12594678,119980.0,119970.0,0.4794958]
[1759428062157,0.88066678,119980.0,119970.0,0.80167428]
[1759428064058,0.12594678,119980.0,119970.0,0.80167428]
[1759428064358,0.88062678,119980.0,119970.0,0.80167428]
[1759428065159,0.099353,119990.0,119980.0,0.0832989]
[1759428065359,0.1043153,120000.0,119990.0,0.0832872]
[1759428065661,0.04258733,120000.0,119990.0,1.12341416]
[1759428065856,0.13986103,120020.0,120010.0,0.104898]
[1759428066056,0.9275475,120020.0,120010.0,0.465698]
[1759428066256,0.90504757,120020.0,120010.0,1.16202648]
[1759428067359,0.88349215,120020.0,120010.0,1.16202648]
[1759428069752,0.88349215,120020.0,120010.0,0.839848]
[1759428069956,0.88349215,120020.0,120010.0,1.16202648]
[1759428073057,0.88349215,120020.0,120010.0,0.826498]
[1759428073360,0.0832849,120010.0,120000.0,0.38242]
[1759428073566,0.1173749,120010.0,120000.0,0.38242]
[1759428073957,0.43955338,120010.0,120000.0,0.38242]
[1759428074366,0.1173749,120010.0,120000.0,0.38242]
[1759428074665,0.43955338,120010.0,120000.0,0.38242]
[1759428075065,0.46103551,120010.0,120000.0,0.465705]
[1759428076453,0.79699213,120010.0,120000.0,0.80123348]
[1759428076958,0.04251213,120010.0,120000.0,0.80123348]
[1759428077157,0.77551,120010.0,120000.0,0.479055]
[1759428077362,0.77551,120010.0,120000.0,0.80123348]
[1759428077565,0.02103,120010.0,120000.0,0.80123348]
[1759428077859,0.11579215,120020.0,120010.0,0.118248]
[1759428078059,0.89171128,120020.0,120010.0,0.80122648]
[1759428078965,0.90477128,120020.0,120010.0,0.80122648]
[1759428079162,0.90477128,120020.0,120010.0,0.479048]
[1759428082159,0.90477128,120020.0,120010.0,0.465698]
[1759428085266,0.88329215,120020.0,120010.0,0.465698]
[1759428086668,0.88321215,120020.0,120010.0,0.465698]
[1759428088456,0.9047047,120020.0,120010.0,0.465698]
[1759428093868,0.9047047,120020.0,120010.0,0.479378]
[1759428094071,0.9047047,120020.0,120010.0,0.465698]
[1759428094269,0.9047047,120020.0,120010.0,0.78787648]
[1759428094971,0.9047047,120020.0,120010.0,0.465698]
[1759428096270,0.92720153,120020.0,120010.0,0.465698]
[1759428098276,1.24923973,120020.0,120010.0,0.7877362]
[1759428099870,0.92720153,120020.0,120010.0,0.7877362]
[1759428100075,1.24923973,120020.0,120010.0,0.7877362]
[1759428102471,1.24923973,120020.0,120010.0,0.465698]
[1759428102672,1.24923973,120020.0,120010.0,0.7877362]
[1759428103978,1.2267429,120020.0,120010.0,0.7877362]
[1759428104273,0.02149255,120020.0,120010.0,1.5234544]
[1759428104468,0.0963207,120040.0,120030.0,0.0969442]
[1759428104469,0.04569683,120040.0,120030.0,0.0969442]
[1759428104670,0.0215489,120040.0,120030.0,1.4836506]
[1759428105474,0.7774,120050.0,120040.0,0.1179672]
[1759428105675,0.79894876,120050.0,120040.0,1.1228436]
[1759428105872,0.14196753,120070.0,120060.0,0.02103]
[1759428106076,1.30578872,120070.0,120060.0,0.7038682]
[1759428106278,1.30578872,120070.0,120060.0,0.7871115]
[1759428106780,0.96124939,120070.0,120060.0,1.1228297]
[1759428106970,0.97288377,120070.0,120060.0,1.1228297]
[1759428107168,1.29492197,120070.0,120060.0,0.38183]
[1759428107374,1.29492197,120070.0,120060.0,0.3608]
[1759428107375,1.61696017,120070.0,120060.0,0.3608]
[1759428107679,1.61696017,120070.0,120060.0,0.1042734]
[1759428107879,1.3174188,120070.0,120060.0,0.1042734]
[1759428108280,1.29492197,120070.0,120060.0,0.1042734]
[1759428110383,1.29492197,120070.0,120060.0,0.0832434]
[1759428110879,1.29492197,120070.0,120060.0,0.1042734]
[1759428111471,1.61696017,120070.0,120060.0,0.1042734]
[1759428112176,1.29492197,120070.0,120060.0,0.1042734]
[1759428113180,1.61696017,120070.0,120060.0,0.1042734]
[1759428113382,1.29492197,120070.0,120060.0,0.1042734]
[1759428113582,1.29492197,120070.0,120060.0,0.0832433]
[1759428113783,1.61696017,120070.0,120060.0,0.0832433]
[1759428115183,1.64690873,120070.0,120060.0,0.0832433]
[1759428115377,1.66928432,120070.0,120060.0,0.0832433]
[1759428116175,1.66928432,120070.0,120060.0,0.1042733]
[1759428116380,1.66928432,120070.0,120060.0,0.0832433]
[1759428117380,0.0832572,120040.0,120030.0,0.4577391]
[1759428117585,1.21628316,120040.0,120030.0,0.8018473]
[1759428117788,0.81098776,120040.0,120030.0,0.8018473]
[1759428117989,0.79733776,120040.0,120030.0,0.8018473]
[1759428118188,0.77546776,120040.0,120030.0,1.5238855]
[1759428118688,0.75392,120040.0,120030.0,1.5238855]
[1759428119080,0.46313895,120060.0,120050.0,0.1181403]
[1759428119381,0.90309135,120060.0,120050.0,0.8009785]
[1759428119686,1.22512955,120060.0,120050.0,0.8009785]
[1759428120082,0.7974706,120060.0,120050.0,0.8009785]
[1759428120385,0.8807139,120060.0,120050.0,0.8009785]
[1759428120686,1.2027521,120060.0,120050.0,0.8009785]
[1759428122893,1.2027121,120060.0,120050.0,0.8009785]
[1759428123087,0.4488321,120060.0,120050.0,0.8009785]
[1759428123287,1.2027121,120060.0,120050.0,0.8009785]
[1759428123488,0.1267939,120060.0,120050.0,0.8009785]
[1759428123687,0.0435506,120060.0,120050.0,0.8009785]
[1759428123888,0.7974306,120060.0,120050.0,0.8009785]
[1759428124088,0.7974306,120060.0,120050.0,0.4789403]
[1759428124387,0.7974306,120060.0,120050.0,0.8009785]
[1759428125396,1.1194688,120060.0,120050.0,0.8009785]
[1759428125591,1.2027122,120060.0,120050.0,0.8009785]
[1759428125988,1.1194688,120060.0,120050.0,0.8009785]
[1759428126886,0.0435506,120060.0,120050.0,0.8009785]
[1759428127097,0.7974306,120060.0,120050.0,0.8009785]
[1759428127594,0.77575,120060.0,120050.0,0.8009785]
[1759428129195,0.79745168,120060.0,120050.0,0.8009785]
[1759428134302,1.11948988,120060.0,120050.0,0.8009785]
[1759428136710,0.79745168,120060.0,120050.0,0.8009785]
[1759428136914,1.11948988,120060.0,120050.0,0.8009785]
[1759428137513,0.79745168,120060.0,120050.0,0.8009785]
[1759428137714,1.11948988,120060.0,120050.0,0.8009785]
[1759428138617,0.79737168,120060.0,120050.0,0.8009785]
[1759428140117,0.79737168,120060.0,120050.0,0.4789403]
[1759428140316,0.79737168,120060.0,120050.0,0.8009785]
[1759428140915,0.79737168,120060.0,120050.0,0.4789403]
[1759428141120,0.79737168,120060.0,120050.0,0.8009785]
[1759428141121,1.11940988,120060.0,120050.0,0.8009785]
[1759428141612,1.13301988,120060.0,120050.0,0.8009785]
[1759428143516,1.13301988,120060.0,120050.0,0.4789403]
[1759428143721,1.13301988,120060.0,120050.0,0.8009785]
[1759428144719,1.13301988,120060.0,120050.0,0.4789403]
[1759428145111,1.13301988,120060.0,120050.0,0.8009785]
[1759428145421,1.13301988,120060.0,120050.0,0.4789403]
[1759428146010,1.13301988,120060.0,120050.0,0.8009785]
[1759428149922,1.13301988,120060.0,120050.0,0.4789403]
[1759428150121,1.13301988,120060.0,120050.0,0.8009785]
[1759428150423,1.13301988,120060.0,120050.0,0.7881585]
[1759428151024,1.13301988,120060.0,120050.0,0.4661203]
[1759428151222,1.13301988,120060.0,120050.0,0.7881585]
[1759428151625,1.13301988,120060.0,120050.0,0.8013285]
[1759428152519,0.81098168,120060.0,120050.0,0.8013285]
[1759428152718,1.13301988,120060.0,120050.0,0.8013285]
[1759428152920,0.37921988,120060.0,120050.0,0.8013285]
[1759428153121,0.36560988,120060.0,120050.0,0.8013285]
[1759428153321,0.79729168,120060.0,120050.0,0.8013285]
[1759428153824,0.79729168,120060.0,120050.0,0.4792903]
[1759428154123,0.79729168,120060.0,120050.0,0.8013285]
[1759428154317,1.11932988,120060.0,120050.0,0.8013285]
[1759428155120,0.79729168,120060.0,120050.0,0.8013285]
[1759428156115,1.11932988,120060.0,120050.0,0.8013285]
[1759428158626,0.36560988,120060.0,120050.0,0.8013285]
[1759428158828,1.11928988,120060.0,120050.0,0.4792903]
[1759428159027,1.11928988,120060.0,120050.0,0.8013285]
[1759428159429,0.36560988,120060.0,120050.0,0.8013285]
[1759428159628,1.11928988,120060.0,120050.0,0.8013285]
[1759428160332,0.79725168,120060.0,120050.0,0.80109469]
[1759428160833,0.04357168,120060.0,120050.0,1.16189469]
[1759428161037,0.79725168,120060.0,120050.0,1.16189469]
[1759428161340,0.71297168,120060.0,120050.0,1.16189469]
[1759428161628,0.04357168,120060.0,120050.0,1.16189469]
[1759428161834,0.79721168,120060.0,120050.0,1.16189469]
[1759428162023,0.79721168,120060.0,120050.0,0.8400903]
[1759428162225,0.79721168,120060.0,120050.0,1.16189469]
[1759428163334,0.88045548,120060.0,120050.0,1.16189469]
[1759428163533,0.79721168,120060.0,120050.0,1.16189469]
[1759428163929,0.88045548,120060.0,120050.0,0.8400903]
[1759428164233,0.88045548,120060.0,120050.0,1.16189469]
[1759428164427,0.79721168,120060.0,120050.0,1.16189469]
[1759428165126,0.81958663,120060.0,120050.0,1.16189469]
[1759428167733,0.06594663,120060.0,120050.0,1.16189469]
[1759428167934,0.81958663,120060.0,120050.0,1.16189469]
[1759428168733,0.81954663,120060.0,120050.0,1.16189469]
[1759428168936,0.04407663,120060.0,120050.0,1.88369908]
[1759428169235,0.02237495,120060.0,120050.0,1.56189469]
[1759428169535,0.02237495,120060.0,120050.0,1.2400903]
[1759428169723,0.02237495,120060.0,120050.0,1.56189469]
[1759428175243,0.88360148,120070.0,120060.0,0.1047938]
[1759428175438,1.22816513,120070.0,120060.0,0.4655938]
[1759428175637,0.1186138,120060.0,120050.0,0.465566]
[1759428175838,0.37993365,120060.0,120050.0,0.465566]
[1759428176137,0.05812926,120060.0,120050.0,0.465566]
[1759428177440,0.05812926,120060.0,120050.0,0.478236]
[1759428177941,0.14137306,120060.0,120050.0,0.478236]
[1759428182045,0.14137306,120060.0,120050.0,0.78737039]
[1759428183143,0.0832508,120050.0,120040.0,0.4440538]
[1759428183343,0.89490006,120050.0,120040.0,0.4655738]
[1759428183744,1.21670445,120050.0,120040.0,0.4655738]
[1759428184451,0.89490006,120050.0,120040.0,0.4655738]